fUST/lending_fUST_20250506
["ID","MTS","AMOUNT","RATE_DAILY","PERIOD"]
[360086173,1746544250963,-151.0,0.00019452,2]
[360086174,1746544250973,-400.0,0.00019452,2]
[360086175,1746544250982,-400.0,0.00019452,2]
[360086176,1746544250991,-151.0,0.00019452,2]
[360086177,1746544251003,-400.0,0.00019452,2]
[360086178,1746544251012,-400.0,0.00019452,2]
[360086179,1746544251021,-411.64,0.00019452,2]
[360086180,1746544251030,-400.0,0.00019452,2]
[360086181,1746544251039,-9064.12,0.00019452,2]
[360086182,1746544251048,-400.0,0.00019452,2]
[360086183,1746544251057,-405.2688485,0.00019452,2]
[360086184,1746544251067,-506.65,0.00019452,2]
[360086185,1746544251076,-844.48,0.00019452,2]
[360086186,1746544251086,-400.0,0.00019452,2]
[360086187,1746544251095,-1257.59,0.00019452,2]
[360086188,1746544251105,-400.0,0.00019452,2]
[360086189,1746544251114,-400.0,0.00019452,2]
[360086190,1746544251123,-151.0,0.00019452,2]
[360086191,1746544251132,-405.51,0.00019452,2]
[360086192,1746544251142,-632.724772,0.00019452,2]
[360086193,1746544251151,-408.62378726,0.00019452,2]
[360086194,1746544251160,-919.75,0.00019452,2]
[360086195,1746544251168,-400.0,0.00019452,2]
[360086196,1746544251178,-400.0,0.00019452,2]
[360086197,1746544251187,-632.724772,0.00019452,2]
[360086198,1746544251196,-400.0,0.00019452,2]
[360086199,1746544251205,-400.0,0.00019452,2]
[360086200,1746544251214,-1344.17,0.00019452,2]
[360086201,1746544251227,-3088.97,0.00019452,2]
[360086202,1746544251236,-1060.16,0.00019452,2]
[360086203,1746544251245,-400.0,0.00019452,2]
[360086204,1746544251254,-611.34,0.00019452,2]
[360086205,1746544251264,-151.0,0.00019452,2]
[360086206,1746544251273,-400.0,0.00019452,2]
[360086207,1746544251282,-400.0,0.00019452,2]
[360086208,1746544251292,-2462.55,0.00019452,2]
[360086209,1746544251301,-833.12,0.00019452,2]
[360086210,1746544251310,-18541.14,0.00019452,2]
[360086211,1746544251320,-403.67899135,0.00019452,2]
[360086212,1746544251330,-400.0,0.00019452,2]
[360086213,1746544251341,-884.07,0.00019452,2]
[360086214,1746544251353,-400.0,0.00019452,2]
[360086215,1746544251362,-151.0,0.00019452,2]
[360086216,1746544251371,-1796.34,0.00019452,2]
[360086217,1746544251381,-151.0,0.00019452,2]
[360086218,1746544251390,-400.0,0.00019452,2]
[360086219,1746544251399,-400.0,0.00019452,2]
[360086220,1746544251408,-400.0,0.00019452,2]
[360086221,1746544251418,-400.0,0.00019452,2]
[360086222,1746544251427,-3622.27,0.00019452,2]
[360086223,1746544251438,-400.0,0.00019452,2]
[360086224,1746544251448,-2768.75,0.00019452,2]
[360086225,1746544251458,-151.0,0.00019452,2]
[360086226,1746544251479,-400.0,0.00019452,2]
[360086227,1746544251489,-798.68,0.00019452,2]
[360086228,1746544251498,-400.0,0.00019452,2]
[360086229,1746544251508,-481.53152116,0.00019452,2]
[360086230,1746544251518,-857.93,0.00019452,2]
[360086231,1746544251528,-400.0,0.00019452,2]
[360086232,1746544251713,-400.0,0.00019452,2]
[360086233,1746544251724,-1266.61,0.00019452,2]
[360086234,1746544251734,-400.0,0.00019452,2]
[360086235,1746544251744,-400.0,0.00019452,2]
[360086236,1746544251753,-400.0,0.00019452,2]
[360086237,1746544251763,-548.5576816,0.00019452,2]
[360086238,1746544251772,-1326.1,0.00019452,2]
[360086239,1746544251782,-208.15339489,0.00019452,2]
[360086240,1746544251792,-371.027915,0.00019452,2]
[360086241,1746544251801,-564.18,0.00019452,2]
[360086242,1746544251811,-3470.31,0.00019452,2]
[360086243,1746544251821,-371.027915,0.00019452,2]
[360086244,1746544251831,-1445.96,0.00019452,2]
[360086245,1746544251841,-309.69643883,0.00019452,2]
[360086246,1746544251850,-501.60716646,0.00019452,2]
[360086247,1746544251859,-400.0,0.00019452,2]
[360086248,1746544251868,-561.88,0.00019452,2]
[360086249,1746544251878,-1079.97,0.00019452,2]
[360086250,1746544251887,-400.0,0.00019452,2]
[360086251,1746544251897,-400.0,0.00019452,2]
[360086252,1746544251905,-400.0,0.00019452,2]
[360086253,1746544251914,-400.0,0.00019452,2]
[360086254,1746544251924,-400.0,0.00019452,2]
[360086255,1746544251934,-151.0,0.00019452,2]
[360086256,1746544251943,-5434.56,0.00019452,2]
[360086257,1746544251953,-400.0,0.00019452,2]
[360086258,1746544251962,-1213.8,0.00019452,2]
[360086259,1746544251971,-400.0,0.00019452,2]
[360086260,1746544251980,-400.0,0.00019452,2]
[360086261,1746544251989,-1594.54,0.00019452,2]
[360086262,1746544251999,-400.0,0.00019452,2]
[360086263,1746544252008,-586.68,0.00019452,2]
[360086264,1746544252017,-400.0,0.00019452,2]
[360086265,1746544252031,-400.0,0.00019452,2]
[360086266,1746544252040,-400.0,0.00019452,2]
[360086267,1746544252050,-400.0,0.00019452,2]
[360086268,1746544252059,-307.91332687,0.00019452,2]
[360086269,1746544252069,-8115.91,0.00019452,2]
[360086270,1746544252079,-451.19,0.00019452,2]
[360086271,1746544252089,-2880.62,0.00019452,2]
[360086272,1746544252099,-400.0,0.00019452,2]
[360086273,1746544252108,-400.0,0.00019452,2]
[360086274,1746544252118,-400.0,0.00019452,2]
[360086275,1746544252127,-400.0,0.00019452,2]
[360086276,1746544252136,-514.0298498,0.00019452,2]
[360086277,1746544252145,-400.0,0.00019452,2]
[360086278,1746544252155,-400.0,0.00019452,2]
[360086279,1746544252164,-420.62,0.00019452,2]
[360086280,1746544252173,-500.0,0.00019452,2]
[360086281,1746544252182,-2143.33,0.00019452,2]
[360086282,1746544252192,-204.21910831,0.00019452,2]
[360086283,1746544252202,-400.0,0.00019452,2]
[360086284,1746544252211,-400.0,0.00019452,2]
[360086285,1746544252220,-405.36,0.00019452,2]
[360086286,1746544252230,-400.0,0.00019452,2]
[360086287,1746544252239,-1228.68,0.00019452,2]
[360086288,1746544252248,-400.0,0.00019452,2]
[360086289,1746544252257,-400.0,0.00019452,2]
[360086290,1746544252266,-2553.13,0.00019452,2]
[360086291,1746544252275,-400.0,0.00019452,2]
[360086292,1746544252285,-400.0,0.00019452,2]
[360086293,1746544252295,-151.0,0.00019452,2]
[360086294,1746544252304,-1002.07,0.00019452,2]
[360086295,1746544252313,-400.0,0.00019452,2]
[360086296,1746544252323,-2078.7,0.00019452,2]
[360086297,1746544252332,-400.0,0.00019452,2]
[360086298,1746544252341,-400.0,0.00019452,2]
[360086299,1746544252351,-956.4,0.00019452,2]
[360086300,1746544252361,-666.87,0.00019452,2]
[360086301,1746544252370,-343.05919239,0.00019452,2]
[360086302,1746544252380,-625.03,0.00019452,2]
[360086303,1746544252389,-1488.42,0.00019452,2]
[360086304,1746544252399,-2645.03,0.00019452,2]
[360086305,1746544252409,-408.08560034,0.00019452,2]
[360086306,1746544252419,-400.0,0.00019452,2]
[360086307,1746544252428,-324.96985208,0.00019453,2]
[360086308,1746544252438,-200.0,0.00019454,4]
[360086309,1746544252447,-231.99734595,0.00019454,4]
[360086310,1746544252457,-151.0,0.000195,2]
[360086311,1746544252466,-8334.29931079,0.00019528,2]
[360086312,1746544252475,-151.0,0.00019528,2]
[360086313,1746544252487,-151.0,0.00019528,2]
[360086314,1746544252497,-151.0,0.00019528,2]
[360086315,1746544252506,-476.44793314,0.00019572,2]
[360086316,1746544252516,-151.0,0.000196,2]
[360086317,1746544252525,-450.4632736,0.000196,2]
[360086318,1746544252535,-951.6694427,0.00019626,2]
[360086319,1746544252545,-1000.0,0.00019679,2]
[360086320,1746544252555,-1000.0,0.00019679,2]
[360086321,1746544252565,-1000.0,0.00019679,2]
[360086322,1746544252574,-1000.0,0.00019679,2]
[360086323,1746544252584,-253.86093688,0.00019725,2]
[360086324,1746544252594,-151.0,0.00019725,2]
[360086325,1746544252607,-151.0,0.00019725,2]
[360086326,1746544252616,-151.0,0.00019725,2]
[360086327,1746544252626,-155.0,0.00019725,2]
[360086328,1746544252635,-151.0,0.00019725,2]
[360086329,1746544252644,-151.0,0.00019725,2]
[360086330,1746544252654,-151.0,0.00019725,2]
[360086331,1746544252664,-12610.21250885,0.00019726,3]
[360086332,1746544252674,-841.96455721,0.00019726,3]
[360086333,1746544252684,-313.9004746,0.00019726,3]
[360086334,1746544252694,-212.03916285,0.00019726,3]
[360086335,1746544252703,-303621.76198871,0.00019726,2]
[360086336,1746544252714,-160.0,0.00019726,3]
[360086337,1746544252723,-113672.92706101,0.00019726,3]
[360086338,1746544252733,-569504.60196927,0.00019726,5]
[360086339,1746544253938,-404.70681988,0.00019178,2]
[360086340,1746544253947,-400.0,0.00019178,2]
[360086341,1746544253957,-400.0,0.00019452,2]
[360086342,1746544253967,-400.0,0.00019452,2]
[360086343,1746544253976,-5426.87055855,0.00019726,5]
[360086390,1746545285790,1618.22,0.00021,10]
[360086403,1746545317383,301.999999,0.0002,120]
[360086439,1746545432763,-162.46590094,0.000159,2]
[360086440,1746545432774,-806.95810855,0.00016,2]
[360086441,1746545432784,-208.40395891,0.00016,2]
[360086442,1746545432794,-162.46590092,0.00016682,2]
[360086443,1746545432804,-300.0,0.00017377,2]
[360086444,1746545432814,-736.0,0.00017377,2]
[360086445,1746545432824,-207.3481111,0.00017378,2]
[360086446,1746545432833,-183.92462001,0.00017378,2]
[360086447,1746545432843,-500.0,0.00017378,2]
[360086448,1746545432853,-500.0,0.00017378,2]
[360086449,1746545432863,-500.0,0.00017378,2]
[360086450,1746545432873,-500.0,0.00017378,2]
[360086451,1746545432883,-539.87160189,0.00017378,2]
[360086452,1746545432892,-500.0,0.00017385,2]
[360086453,1746545432902,-501.70931103,0.00017385,2]
[360086454,1746545432912,-15670.89055,0.00017386,2]
[360086455,1746545432921,-162.46590092,0.00017464,2]
[360086456,1746545432931,-5737.98836225,0.00017565,2]
[360086457,1746545432943,-2779.72725495,0.00017565,2]
[360086458,1746545432953,-652.06741982,0.000176,2]
[360086459,1746545432965,-962.71327066,0.000179,2]
[360086460,1746545432975,-8513.35657655,0.00018,2]
[360086461,1746545432984,-500.0,0.00018373,2]
[360086462,1746545432994,-500.0,0.00018373,2]
[360086463,1746545433004,-500.0,0.00018373,2]
[360086464,1746545433014,-500.0,0.00018373,2]
[360086465,1746545433024,-500.0,0.00018373,2]
[360086466,1746545433035,-500.0,0.00018373,2]
[360086467,1746545433045,-500.0,0.00018373,2]
[360086468,1746545433055,-1865.1,0.0001839,2]
[360086469,1746545433066,-298.99,0.0001839,3]
[360086470,1746545433076,-896.97,0.0001839,3]
[360086471,1746545433085,-107250.45245988,0.000184,2]
[360086498,1746545438821,-8013.28445522,0.000184,2]
[360086499,1746545438833,-59703.71976424,0.000184,2]
[360086500,1746545438846,-195032.54332066,0.000184,2]
[360086501,1746545438856,-258.01097157,0.000186,2]
[360086502,1746545438866,-215.4917635,0.000187,2]
[360086503,1746545438875,-258.01097153,0.0001872,2]
[360086504,1746545438885,-155.0,0.00018737,2]
[360086505,1746545438895,-151.0,0.000188,2]
[360086506,1746545438904,-258.01097153,0.00018839,2]
[360086507,1746545438913,-151.0,0.000189,2]
[360086508,1746545438923,-504.62081781,0.000189,2]
[360086509,1746545438932,-1664.61600755,0.000189,2]
[360086510,1746545438942,-258.01097153,0.00018959,2]
[360086511,1746545438952,-420.0,0.00018972,2]
[360086512,1746545438963,-151.0,0.00019,2]
[360086513,1746545438973,-160.0,0.00019064,2]
[360086514,1746545438982,-160.0,0.00019064,2]
[360086515,1746545438992,-258.01097153,0.00019078,2]
[360086516,1746545439003,-151.0,0.000191,2]
[360086517,1746545439012,-45531.86068191,0.0001917,2]
[360086518,1746545439021,-500.0,0.00019173,2]
[360086519,1746545439031,-500.0,0.00019173,2]
[360086520,1746545439042,-300.0,0.00019173,2]
[360086521,1746545439051,-500.0,0.00019173,2]
[360086522,1746545439061,-500.0,0.00019173,2]
[360086523,1746545439071,-500.0,0.00019173,2]
[360086524,1746545439080,-500.0,0.00019173,2]
[360086525,1746545439089,-500.0,0.00019173,2]
[360086526,1746545439098,-500.0,0.00019173,2]
[360086527,1746545439108,-500.0,0.00019173,2]
[360086528,1746545439117,-500.0,0.00019173,2]
[360086529,1746545439127,-500.0,0.00019173,2]
[360086530,1746545439137,-646.35231596,0.00019173,2]
[360086531,1746545439146,-500.0,0.00019173,2]
[360086532,1746545439155,-500.0,0.00019173,2]
[360086533,1746545439164,-500.0,0.00019173,2]
[360086534,1746545439173,-500.0,0.00019173,2]
[360086535,1746545439183,-503.23032788,0.00019173,2]
[360086536,1746545439192,-409.63546886,0.00019173,2]
[360086537,1746545439201,-500.0,0.00019173,2]
[360086538,1746545439210,-500.0,0.00019173,2]
[360086539,1746545439219,-500.0,0.00019173,2]
[360086540,1746545439229,-500.0,0.00019173,2]
[360086541,1746545439238,-500.0,0.00019173,2]
[360086542,1746545439247,-500.0,0.00019173,2]
[360086543,1746545439256,-500.0,0.00019173,2]
[360086544,1746545439266,-500.0,0.00019173,2]
[360086545,1746545439276,-500.0,0.00019173,2]
[360086546,1746545439286,-500.0,0.00019173,2]
[360086547,1746545439295,-500.0,0.00019173,2]
[360086548,1746545439304,-500.0,0.00019173,2]
[360086549,1746545439315,-512.51779274,0.00019173,2]
[360086550,1746545439325,-500.0,0.00019173,2]
[360086551,1746545439335,-500.0,0.00019173,2]
[360086552,1746545439344,-500.0,0.00019173,2]
[360086553,1746545439354,-326.71435727,0.00019177,4]
[360086554,1746545439363,-456.41,0.00019178,2]
[360086555,1746545439372,-400.0,0.00019178,2]
[360086556,1746545439382,-400.0,0.00019178,2]
[360086557,1746545439391,-1066.43,0.00019178,2]
[360086558,1746545439400,-400.0,0.00019178,2]
[360086559,1746545439411,-400.0,0.00019178,2]
[360086560,1746545439420,-400.0,0.00019178,2]
[360086561,1746545439612,-400.0,0.00019178,2]
[360086562,1746545439622,-400.0,0.00019178,2]
[360086563,1746545439632,-400.0,0.00019178,2]
[360086564,1746545439641,-360.81304676,0.00019178,2]
[360086565,1746545439651,-667.88,0.00019178,2]
[360086566,1746545439661,-171.66772179,0.00019178,2]
[360086567,1746545439671,-410.02294539,0.00019178,2]
[360086568,1746545439681,-400.0,0.00019178,2]
[360086569,1746545439691,-296.88359585,0.00019178,2]
[360086570,1746545439700,-550.22,0.00019178,2]
[360086571,1746545439710,-407.28009437,0.00019178,2]
[360086572,1746545439721,-400.0,0.00019178,2]
[360086573,1746545439730,-400.0,0.00019178,2]
[360086574,1746545439739,-400.0,0.00019178,2]
[360086575,1746545439749,-400.0,0.00019178,2]
[360086576,1746545439760,-400.0,0.00019178,2]
[360086577,1746545439769,-209.74151803,0.00019178,2]
[360086578,1746545439779,-400.0,0.00019178,2]
[360086579,1746545439789,-402.9905216,0.00019178,2]
[360086580,1746545439799,-400.0,0.00019178,2]
[360086581,1746545439808,-400.0,0.00019178,2]
[360086582,1746545439818,-409.1287546,0.00019178,2]
[360086583,1746545439828,-400.0,0.00019178,2]
[360086584,1746545439837,-404.44071544,0.00019178,2]
[360086585,1746545439848,-400.0,0.00019178,2]
[360086586,1746545439858,-400.0,0.00019178,2]
[360086587,1746545439868,-400.0,0.00019178,2]
[360086588,1746545439878,-408.58372012,0.00019178,2]
[360086589,1746545439888,-400.0,0.00019178,2]
[360086590,1746545439898,-405.32974979,0.00019178,2]
[360086591,1746545439908,-400.0,0.00019178,2]
[360086592,1746545439918,-400.0,0.00019178,2]
[360086593,1746545439928,-408.95706626,0.00019178,2]
[360086594,1746545439938,-505.55043199,0.00019178,2]
[360086595,1746545439948,-400.0,0.00019178,2]
[360086596,1746545439961,-403.64686653,0.00019178,2]
[360086597,1746545439972,-400.0,0.00019178,2]
[360086598,1746545439982,-400.86104084,0.00019178,2]
[360086599,1746545439992,-408.05559619,0.00019178,2]
[360086600,1746545440003,-400.0,0.00019178,2]
[360086601,1746545440013,-400.0,0.00019178,2]
[360086602,1746545440023,-400.0,0.00019178,2]
[360086603,1746545440033,-400.0,0.00019178,2]
[360086604,1746545440045,-400.0,0.00019178,2]
[360086605,1746545440056,-402.60372552,0.00019178,2]
[360086606,1746545440066,-409.58833829,0.00019178,2]
[360086607,1746545440076,-186.25005525,0.00019178,2]
[360086608,1746545440086,-561.19,0.00019178,2]
[360086609,1746545440096,-401.58873496,0.00019178,2]
[360086610,1746545440105,-400.0,0.00019178,2]
[360086611,1746545440115,-422.64479572,0.00019178,2]
[360086612,1746545440124,-409.61226827,0.00019178,2]
[360086613,1746545440133,-400.0,0.00019178,2]
[360086614,1746545440142,-400.0,0.00019178,2]
[360086615,1746545440151,-400.0,0.00019178,2]
[360086616,1746545440162,-400.0,0.00019178,2]
[360086617,1746545440171,-400.0,0.00019178,2]
[360086618,1746545440181,-405.48514162,0.00019178,2]
[360086619,1746545440190,-400.0,0.00019178,2]
[360086620,1746545440200,-447.23,0.00019178,2]
[360086621,1746545440209,-400.0,0.00019178,2]
[360086622,1746545440219,-400.0,0.00019178,2]
[360086623,1746545440229,-400.0,0.00019178,2]
[360086624,1746545440238,-400.0,0.00019178,2]
[360086625,1746545440248,-400.0,0.00019178,2]
[360086626,1746545440258,-400.0,0.00019178,2]
[360086627,1746545440268,-731.58,0.00019178,2]
[360086629,1746545440278,-400.0,0.00019178,2]
[360086630,1746545440287,-513.7459558,0.00019178,2]
[360086632,1746545440297,-401.39677314,0.00019178,2]
[360086634,1746545440307,-403.14127598,0.00019178,2]
[360086635,1746545440317,-401.30935804,0.00019178,2]
[360086637,1746545440326,-400.0,0.00019178,2]
[360086638,1746545440336,-400.0,0.00019178,2]
[360086639,1746545440345,-431.81714596,0.00019178,2]
[360086640,1746545440355,-400.0,0.00019178,2]
[360086641,1746545440365,-400.0,0.00019178,2]
[360086642,1746545440375,-400.0,0.00019178,2]
[360086643,1746545440384,-400.0,0.00019178,2]
[360086644,1746545440393,-474.96,0.00019178,2]
[360086646,1746545440403,-400.0,0.00019178,2]
[360086648,1746545440412,-206.0059834,0.00019178,2]
[360086650,1746545440422,-400.0,0.00019178,2]
[360086652,1746545440431,-405.8713486,0.00019178,2]
[360086654,1746545440441,-400.0,0.00019178,2]
[360086656,1746545440450,-400.0,0.00019178,2]
[360086658,1746545440460,-400.0,0.00019178,2]
[360086659,1746545440469,-403.34010556,0.00019178,2]
[360086660,1746545440478,-501.47442538,0.00019178,2]
[360086661,1746545440488,-400.0,0.00019178,2]
[360086662,1746545440498,-400.0,0.00019178,2]
[360086663,1746545440507,-400.0,0.00019178,2]
[360086664,1746545440517,-430.64,0.00019178,2]
[360086666,1746545440527,-402.97556098,0.00019178,2]
[360086668,1746545440536,-400.0,0.00019178,2]
[360086670,1746545440546,-402.90417274,0.00019178,2]
[360086672,1746545440557,-400.0,0.00019178,2]
[360086674,1746545440567,-400.0,0.00019178,2]
[360086675,1746545440576,-326.7264839,0.00019178,2]
[360086677,1746545440585,-400.0,0.00019178,2]
[360086679,1746545440595,-502.1374089,0.00019178,2]
[360086682,1746545440605,-400.0,0.00019178,2]
[360086683,1746545440615,-400.0,0.00019178,2]
[360086686,1746545440625,-505.86301473,0.00019178,2]
[360086688,1746545440634,-400.0,0.00019178,2]
[360086690,1746545440644,-403.34072284,0.00019178,2]
[360086691,1746545440653,-400.0,0.00019178,2]
[360086694,1746545440663,-400.0,0.00019178,2]
[360086695,1746545440672,-400.0,0.00019178,2]
[360086697,1746545440681,-608.74,0.00019178,2]
[360086699,1746545440690,-402.77803583,0.00019178,2]
[360086701,1746545440700,-400.0,0.00019178,2]
[360086703,1746545440709,-529.81655266,0.00019178,2]
[360086705,1746545440718,-473.40339252,0.00019178,2]
[360086707,1746545440727,-400.0,0.00019178,2]
[360086709,1746545440737,-400.0,0.00019178,2]
[360086711,1746545440747,-400.0,0.00019178,2]
[360086713,1746545440756,-400.0,0.00019178,2]
[360086715,1746545440766,-400.0,0.00019178,2]
[360086717,1746545440775,-400.0,0.00019178,2]
[360086719,1746545440788,-400.0,0.00019178,2]
[360086721,1746545440797,-400.0,0.00019178,2]
[360086723,1746545440807,-400.0,0.00019178,2]
[360086725,1746545440816,-400.0,0.00019178,2]
[360086726,1746545440826,-400.0,0.00019178,2]
[360086728,1746545440836,-400.0,0.00019178,2]
[360086730,1746545440845,-400.0,0.00019178,2]
[360086732,1746545440855,-400.0,0.00019178,2]
[360086734,1746545440864,-400.0,0.00019178,2]
[360086736,1746545440873,-400.0,0.00019178,2]
[360086738,1746545440883,-400.0,0.00019178,2]
[360086740,1746545440892,-502.79430711,0.00019178,2]
[360086742,1746545440902,-400.0,0.00019178,2]
[360086744,1746545440911,-400.0,0.00019178,2]
[360086746,1746545440921,-257.3214084,0.00019178,2]
[360086748,1746545440931,-400.0,0.00019178,2]
[360086750,1746545440940,-400.0,0.00019178,2]
[360086752,1746545440950,-402.47607156,0.00019178,2]
[360086754,1746545440964,-400.0,0.00019178,2]
[360086756,1746545440973,-400.0,0.00019178,2]
[360086758,1746545440983,-400.0,0.00019178,2]
[360086760,1746545440992,-400.0,0.00019178,2]
[360086762,1746545441003,-400.0,0.00019178,2]
[360086764,1746545441012,-500.0,0.00019178,2]
[360086766,1746545441021,-504.00350299,0.00019178,2]
[360086768,1746545441032,-400.0,0.00019178,2]
[360086770,1746545441041,-400.0,0.00019178,2]
[360086772,1746545441051,-400.0,0.00019178,2]
[360086774,1746545441063,-400.0,0.00019178,2]
[360086776,1746545441072,-503.10174603,0.00019178,2]
[360086778,1746545441081,-400.0,0.00019178,2]
[360086780,1746545441090,-500.0,0.00019178,2]
[360086782,1746545441100,-1026.77,0.00019178,2]
[360086784,1746545441109,-400.0,0.00019178,2]
[360086785,1746545441119,-400.0,0.00019178,2]
[360086787,1746545441128,-502.65057498,0.00019178,2]
[360086789,1746545441137,-571.29,0.00019178,2]
[360086791,1746545441147,-400.0,0.00019178,2]
[360086793,1746545441156,-400.0,0.00019178,2]
[360086795,1746545441167,-401.97286654,0.00019178,2]
[360086797,1746545441176,-852.0,0.00019178,2]
[360086799,1746545441185,-400.0,0.00019178,2]
[360086801,1746545441194,-400.0,0.00019178,2]
[360086803,1746545441203,-2938.9,0.00019178,2]
[360086805,1746545441213,-400.0,0.00019178,2]
[360086807,1746545441222,-504.4020155,0.00019178,2]
[360086809,1746545441231,-400.0,0.00019178,2]
[360086811,1746545441240,-400.0,0.00019178,2]
[360086813,1746545441250,-307.06732803,0.00019178,2]
[360086815,1746545441258,-535.14,0.00019178,2]
[360086817,1746545441268,-400.0,0.00019178,2]
[360086819,1746545441277,-402.91911364,0.00019178,2]
[360086821,1746545441286,-315.14647706,0.00019178,2]
[360086823,1746545441295,-400.0,0.00019178,2]
[360086825,1746545441306,-400.0,0.00019178,2]
[360086827,1746545441315,-320.64628423,0.00019178,2]
[360086829,1746545441324,-1308.2,0.00019178,2]
[360086831,1746545441333,-412.8869152,0.00019178,2]
[360086833,1746545441343,-400.0,0.00019178,2]
[360086835,1746545441351,-400.0,0.00019178,2]
[360086837,1746545441361,-214.02295616,0.00019178,2]
[360086839,1746545441370,-400.0,0.00019178,2]
[360086841,1746545441379,-475.4,0.00019178,2]
[360086843,1746545441388,-400.0,0.00019178,2]
[360086845,1746545441397,-400.0,0.00019178,2]
[360086847,1746545441406,-732.37,0.00019178,2]
[360086849,1746545441416,-400.0,0.00019178,2]
[360086851,1746545441425,-400.0,0.00019178,2]
[360086853,1746545441434,-400.0,0.00019178,2]
[360086855,1746545441443,-400.0,0.00019178,2]
[360086857,1746545441452,-400.0,0.00019178,2]
[360086859,1746545441462,-400.0,0.00019178,2]
[360086861,1746545441471,-415.3774956,0.00019178,2]
[360086863,1746545441480,-400.0,0.00019178,2]
[360086865,1746545441490,-400.0,0.00019178,2]
[360086867,1746545441500,-400.0,0.00019178,2]
[360086869,1746545441510,-400.0,0.00019178,2]
[360086871,1746545441519,-405.72679758,0.00019178,2]
[360086873,1746545441529,-400.0,0.00019178,2]
[360086875,1746545441537,-1732.06,0.00019178,2]
[360086877,1746545441548,-707.1,0.00019178,2]
[360086879,1746545441560,-400.0,0.00019178,2]
[360086881,1746545441570,-400.0,0.00019178,2]
[360086883,1746545441580,-400.0,0.00019178,2]
[360086885,1746545441589,-203.49669118,0.00019178,2]
[360086887,1746545441599,-703.0,0.00019178,2]
[360086889,1746545441608,-5027.33,0.00019178,2]
[360086891,1746545441617,-400.0,0.00019178,2]
[360086893,1746545441626,-400.0,0.00019178,2]
[360086895,1746545441636,-400.0,0.00019178,2]
[360086897,1746545441646,-400.0,0.00019178,2]
[360086899,1746545441655,-406.5313941,0.00019178,2]
[360086901,1746545441664,-400.0,0.00019178,2]
[360086903,1746545441674,-400.0,0.00019178,2]
[360086905,1746545441683,-400.0,0.00019178,2]
[360086907,1746545441692,-374.12205141,0.00019178,2]
[360086909,1746545441701,-400.0,0.00019178,2]
[360086911,1746545441710,-403.72300293,0.00019178,2]
[360086913,1746545441719,-400.0,0.00019178,2]
[360086915,1746545441728,-400.0,0.00019178,2]
[360086917,1746545441737,-400.0,0.00019178,2]
[360086919,1746545441747,-400.0,0.00019178,2]
[360086921,1746545441756,-400.0,0.00019178,2]
[360086923,1746545441766,-500.0,0.00019178,2]
[360086925,1746545441776,-405.49127718,0.00019178,2]
[360086927,1746545441785,-400.0,0.00019178,2]
[360086929,1746545441795,-400.0,0.00019178,2]
[360086931,1746545441807,-400.0,0.00019178,2]
[360086933,1746545441816,-407.394944,0.00019178,2]
[360086935,1746545441825,-402.84430598,0.00019178,2]
[360086937,1746545441835,-400.0,0.00019178,2]